[Event "*** Titled Tuesday Blitz"]
[Site "Chess.com"]
[Date "2021.02.09"]
[Round "1"]
[White "Xeniya2005"]
[Black "nochewycandy"]
[Result "0-1"]
[WhiteElo "2352"]
[BlackElo "2668"]
[TimeControl "180+1"]
[EndTime "10:07:41 PST"]
[Termination "nochewycandy won by resignation"]

1. e4 {[%clk 0:03:00.9]} 1... e5 {[%clk 0:02:59.6]} 2. Nf3 {[%clk 0:02:59.3]}
2... Nc6 {[%clk 0:02:59.8]} 3. Nc3 {[%clk 0:02:58]} 3... Nf6 {[%clk 0:02:59.2]}
4. Bb5 {[%clk 0:02:56.8]} 4... Bb4 {[%clk 0:02:58.3]} 5. O-O {[%clk 0:02:55.3]}
5... O-O {[%clk 0:02:58.6]} 6. d3 {[%clk 0:02:54.3]} 6... Bxc3 {[%clk
0:02:58.6]} 7. bxc3 {[%clk 0:02:52.9]} 7... d6 {[%clk 0:02:59.3]} 8. Bg5 {[%clk
0:02:50.4]} 8... Qe7 {[%clk 0:02:53.3]} 9. Re1 {[%clk 0:02:50]} 9... a6 {[%clk
0:02:53.4]} 10. Ba4 {[%clk 0:02:47.6]} 10... Nd8 {[%clk 0:02:46.8]} 11. d4
{[%clk 0:02:43.9]} 11... Ne6 {[%clk 0:02:46.8]} 12. Bd2 {[%clk 0:02:42.3]} 12...
b5 {[%clk 0:02:46.9]} 13. Bb3 {[%clk 0:02:40.9]} 13... Bb7 {[%clk 0:02:43.3]}
14. Bxe6 {[%clk 0:02:36.2]} 14... Qxe6 {[%clk 0:02:42.8]} 15. d5 {[%clk
0:02:35.3]} 15... Qd7 {[%clk 0:02:41.2]} 16. a4 {[%clk 0:02:31.9]} 16... c6
{[%clk 0:02:41.3]} 17. Bg5 {[%clk 0:02:21.3]} 17... Ne8 {[%clk 0:02:33.7]} 18.
Qd3 {[%clk 0:02:13]} 18... f6 {[%clk 0:02:28.4]} 19. Be3 {[%clk 0:02:10.7]}
19... c5 {[%clk 0:02:24.9]} 20. c4 {[%clk 0:02:02.2]} 20... b4 {[%clk
0:02:23.1]} 21. Bd2 {[%clk 0:01:55.6]} 21... a5 {[%clk 0:02:22.4]} 22. Nh4
{[%clk 0:01:53]} 22... g6 {[%clk 0:02:21.1]} 23. Qg3 {[%clk 0:01:37.5]} 23...
Ng7 {[%clk 0:02:19.8]} 24. Bh6 {[%clk 0:01:29]} 24... Ba6 {[%clk 0:02:18.9]} 25.
Qd3 {[%clk 0:01:24.1]} 25... Rf7 {[%clk 0:02:15]} 26. g3 {[%clk 0:01:22]} 26...
Qg4 {[%clk 0:02:10.2]} 27. Kg2 {[%clk 0:01:13.9]} 27... Qh5 {[%clk 0:02:09.4]}
28. Bxg7 {[%clk 0:01:13.2]} 28... Kxg7 {[%clk 0:02:10]} 29. h3 {[%clk
0:01:11.6]} 29... Raf8 {[%clk 0:02:07.5]} 30. Rf1 {[%clk 0:00:51.1]} 30... f5
{[%clk 0:02:07.1]} 31. exf5 {[%clk 0:00:49.8]} 31... gxf5 {[%clk 0:02:08]} 32.
f4 {[%clk 0:00:49.2]} 32... e4 {[%clk 0:02:05.4]} 33. Qb3 {[%clk 0:00:47.4]}
33... Kg8 {[%clk 0:02:03.2]} 34. Rae1 {[%clk 0:00:46.3]} 34... Rg7 {[%clk
0:02:02.2]} 35. Kh2 {[%clk 0:00:46.3]} 35... Qf7 {[%clk 0:01:58]} 36. Ng2 {[%clk
0:00:39.1]} 36... Qf6 {[%clk 0:01:56.9]} 37. Ne3 {[%clk 0:00:38.5]} 37... h5
{[%clk 0:01:56.4]} 38. Rg1 {[%clk 0:00:35.9]} 38... Rff7 {[%clk 0:01:55.7]} 39.
Qb1 {[%clk 0:00:31.7]} 39... Rg6 {[%clk 0:01:54.6]} 40. Qd1 {[%clk 0:00:30.8]}
40... Rh7 {[%clk 0:01:52]} 41. Ref1 {[%clk 0:00:25.5]} 41... Kf8 {[%clk
0:01:43.5]} 42. Qe2 {[%clk 0:00:20.6]} 42... Ke8 {[%clk 0:01:42.4]} 43. Rd1
{[%clk 0:00:20.4]} 43... Kd8 {[%clk 0:01:42.6]} 44. Ng2 {[%clk 0:00:20.6]} 44...
Rg8 {[%clk 0:01:37.3]} 45. Ne3 {[%clk 0:00:20.6]} 45... Bc8 {[%clk 0:01:36.3]}
46. Qd2 {[%clk 0:00:20.4]} 46... Bd7 {[%clk 0:01:35.3]} 47. Ra1 {[%clk
0:00:20.4]} 47... Rhg7 {[%clk 0:01:34.1]} 48. Rg2 {[%clk 0:00:19.2]} 48... h4
{[%clk 0:01:34.3]} 49. Rag1 {[%clk 0:00:18.9]} 49... hxg3+ {[%clk 0:01:33.7]}
50. Rxg3 {[%clk 0:00:19.8]} 50... Rxg3 {[%clk 0:01:33.5]} 51. Rxg3 {[%clk
0:00:20.7]} 51... Rxg3 {[%clk 0:01:33.6]} 52. Kxg3 {[%clk 0:00:21.6]} 52... Qg7+
{[%clk 0:01:33.6]} 53. Kh2 {[%clk 0:00:22.1]} 53... Qh6 {[%clk 0:01:34]} 54. Qf2
{[%clk 0:00:22.1]} 54... Qg7 {[%clk 0:01:29.4]} 55. Qg3 {[%clk 0:00:21.6]} 55...
Qc3 {[%clk 0:01:27.9]} 56. h4 {[%clk 0:00:19.2]} 56... Qd2+ {[%clk 0:01:20.1]}
57. Kh3 {[%clk 0:00:18.7]} 57... Qe2 {[%clk 0:01:20.6]} 58. h5 {[%clk
0:00:17.9]} 58... Qxh5+ {[%clk 0:01:19.6]} 59. Qh4+ {[%clk 0:00:16.8]} 59...
Qxh4+ {[%clk 0:01:20]} 60. Kxh4 {[%clk 0:00:17.7]} 60... Bxa4 {[%clk 0:01:19]}
61. Kg5 {[%clk 0:00:18.1]} 61... Bd7 {[%clk 0:01:17.6]} 62. Nf1 {[%clk
0:00:17.5]} 62... Ba4 {[%clk 0:01:17.4]} 63. Ne3 {[%clk 0:00:16.1]} 63... Bd7
{[%clk 0:01:18]} 64. Nf1 {[%clk 0:00:15.8]} 64... a4 {[%clk 0:01:18.5]} 65. Nd2
{[%clk 0:00:15.9]} 65... Ke7 {[%clk 0:01:18.3]} 66. Kh4 {[%clk 0:00:15.6]} 66...
Kf6 {[%clk 0:01:18.3]} 67. Kg3 {[%clk 0:00:15.9]} 67... Be8 {[%clk 0:01:17.9]}
68. Kf2 {[%clk 0:00:15.2]} 68... Bh5 {[%clk 0:01:18.1]} 69. Ke1 {[%clk
0:00:13.8]} 69... Bf3 {[%clk 0:01:17.3]} 70. Kf2 {[%clk 0:00:13.2]} 70... Kg6
{[%clk 0:01:17.1]} 71. Kg3 {[%clk 0:00:11.5]} 71... Kh5 {[%clk 0:01:17.1]} 72.
Kf2 {[%clk 0:00:10.3]} 72... Kg4 {[%clk 0:01:17.2]} 73. Ke3 {[%clk 0:00:10.8]}
73... Bd1 {[%clk 0:01:15.5]} 0-1

[Event "*** Titled Tuesday Blitz"]
[Site "Chess.com"]
[Date "2021.02.09"]
[Round "1"]
[White "NicoChasin"]
[Black "Etud-otradnoe"]
[Result "1-0"]
[WhiteElo "2614"]
[BlackElo "2310"]
[TimeControl "180+1"]
[EndTime "10:07:42 PST"]
[Termination "NicoChasin won on time"]

1. e4 {[%clk 0:02:56.9]} 1... e6 {[%clk 0:02:59.6]} 2. d3 {[%clk 0:02:55.3]}
2... d5 {[%clk 0:02:58.7]} 3. Nd2 {[%clk 0:02:54.3]} 3... Nc6 {[%clk 0:02:57.3]}
4. Ngf3 {[%clk 0:02:47.8]} 4... g6 {[%clk 0:02:57.2]} 5. g3 {[%clk 0:02:45.4]}
5... Bg7 {[%clk 0:02:57.2]} 6. Bg2 {[%clk 0:02:45.7]} 6... Nge7 {[%clk
0:02:54.7]} 7. O-O {[%clk 0:02:41.7]} 7... e5 {[%clk 0:02:54.7]} 8. Re1 {[%clk
0:02:41.2]} 8... O-O {[%clk 0:02:52.7]} 9. exd5 {[%clk 0:02:40.4]} 9... Nxd5
{[%clk 0:02:51.9]} 10. Nc4 {[%clk 0:02:39.1]} 10... Re8 {[%clk 0:02:46]} 11. Bg5
{[%clk 0:02:29.6]} 11... Qd7 {[%clk 0:02:22.1]} 12. c3 {[%clk 0:02:18.2]} 12...
Nb6 {[%clk 0:02:21.3]} 13. Nxb6 {[%clk 0:02:14.8]} 13... axb6 {[%clk 0:02:21]}
14. Qc2 {[%clk 0:02:12.4]} 14... Qf5 {[%clk 0:01:46.1]} 15. Be3 {[%clk
0:02:00.3]} 15... h6 {[%clk 0:01:31.7]} 16. b4 {[%clk 0:01:56.7]} 16... Be6
{[%clk 0:01:20.3]} 17. b5 {[%clk 0:01:45.6]} 17... Na5 {[%clk 0:01:20.2]} 18.
Qd2 {[%clk 0:01:26.7]} 18... Kh7 {[%clk 0:01:16.7]} 19. d4 {[%clk 0:01:15.8]}
19... Rad8 {[%clk 0:01:07.9]} 20. Qc1 {[%clk 0:00:50.9]} 20... Bd5 {[%clk
0:00:56.2]} 21. Nh4 {[%clk 0:00:48.5]} 21... Qd7 {[%clk 0:00:47.8]} 22. dxe5
{[%clk 0:00:46.8]} 22... Bxg2 {[%clk 0:00:45.6]} 23. Nxg2 {[%clk 0:00:44.7]}
23... Rxe5 {[%clk 0:00:44.8]} 24. Qc2 {[%clk 0:00:37.3]} 24... Rxb5 {[%clk
0:00:37.5]} 25. Rad1 {[%clk 0:00:34.5]} 25... Rd5 {[%clk 0:00:31.7]} 26. Rxd5
{[%clk 0:00:30.9]} 26... Qxd5 {[%clk 0:00:31.6]} 27. Bf4 {[%clk 0:00:29.2]}
27... Rd7 {[%clk 0:00:27.7]} 28. Ne3 {[%clk 0:00:27.8]} 28... Qf3 {[%clk
0:00:25.2]} 29. h4 {[%clk 0:00:26.5]} 29... h5 {[%clk 0:00:24.1]} 30. a4 {[%clk
0:00:17.5]} 30... Bf6 {[%clk 0:00:23.1]} 31. Bg5 {[%clk 0:00:14.1]} 31... Bxg5
{[%clk 0:00:21.9]} 32. hxg5 {[%clk 0:00:15]} 32... Nc6 {[%clk 0:00:13.3]} 33.
Ng2 {[%clk 0:00:14.9]} 33... Qd3 {[%clk 0:00:11.1]} 34. Qb2 {[%clk 0:00:13.4]}
34... Qc4 {[%clk 0:00:09.7]} 35. Nf4 {[%clk 0:00:12.7]} 35... Na5 {[%clk
0:00:04]} 36. Qc2 {[%clk 0:00:11.9]} 36... Qc5 {[%clk 0:00:03.6]} 37. Nxh5
{[%clk 0:00:08.6]} 37... Qxg5 {[%clk 0:00:03]} 38. Nf4 {[%clk 0:00:09.2]} 38...
Nc6 {[%clk 0:00:01.8]} 39. Qe4 {[%clk 0:00:07.3]} 39... Rd6 {[%clk 0:00:01]} 40.
Qh1+ {[%clk 0:00:07]} 1-0

[Event "*** Titled Tuesday Blitz"]
[Site "Chess.com"]
[Date "2021.02.09"]
[Round "1"]
[White "MartinMatthiesen"]
[Black "EugeneRougon"]
[Result "0-1"]
[WhiteElo "2378"]
[BlackElo "2715"]
[TimeControl "180+1"]
[EndTime "10:07:44 PST"]
[Termination "EugeneRougon won on time"]

1. d4 {[%clk 0:02:59.6]} 1... d6 {[%clk 0:02:57.8]} 2. Nf3 {[%clk 0:02:57.9]}
2... g6 {[%clk 0:02:58.3]} 3. c4 {[%clk 0:02:57.8]} 3... Bg7 {[%clk 0:02:56.7]}
4. Nc3 {[%clk 0:02:57.8]} 4... Bg4 {[%clk 0:02:54.6]} 5. e3 {[%clk 0:02:57.2]}
5... Nf6 {[%clk 0:02:54.4]} 6. Be2 {[%clk 0:02:57.2]} 6... O-O {[%clk
0:02:54.7]} 7. O-O {[%clk 0:02:57.1]} 7... Na6 {[%clk 0:02:53.3]} 8. e4 {[%clk
0:02:54.8]} 8... c6 {[%clk 0:02:46.7]} 9. Be3 {[%clk 0:02:53.7]} 9... e5 {[%clk
0:02:38.3]} 10. d5 {[%clk 0:02:51.5]} 10... c5 {[%clk 0:02:29.5]} 11. Nd2 {[%clk
0:02:49.8]} 11... Bd7 {[%clk 0:02:26.5]} 12. a3 {[%clk 0:02:48.6]} 12... Ne8
{[%clk 0:02:14.4]} 13. Rb1 {[%clk 0:02:44.3]} 13... f5 {[%clk 0:02:11.1]} 14. f3
{[%clk 0:02:43.8]} 14... Nf6 {[%clk 0:02:05.7]} 15. b4 {[%clk 0:02:40.6]} 15...
b6 {[%clk 0:02:06]} 16. bxc5 {[%clk 0:02:18.3]} 16... Nxc5 {[%clk 0:02:05.3]}
17. Nb3 {[%clk 0:02:17]} 17... fxe4 {[%clk 0:02:00.4]} 18. Nxc5 {[%clk
0:02:12.7]} 18... bxc5 {[%clk 0:02:01.3]} 19. Nxe4 {[%clk 0:02:10.3]} 19... Nxe4
{[%clk 0:01:56.1]} 20. fxe4 {[%clk 0:02:10.3]} 20... Qa5 {[%clk 0:01:57]} 21.
Qd3 {[%clk 0:02:01.4]} 21... Rab8 {[%clk 0:01:48.9]} 22. Bd2 {[%clk 0:01:43.1]}
22... Qa4 {[%clk 0:01:45.3]} 23. Rxf8+ {[%clk 0:01:13]} 23... Rxf8 {[%clk
0:01:46.2]} 24. Rb7 {[%clk 0:01:01.1]} 24... Bc8 {[%clk 0:01:38.9]} 25. Rb1
{[%clk 0:00:41.5]} 25... Ba6 {[%clk 0:01:34.5]} 26. h3 {[%clk 0:00:36.1]} 26...
Bf6 {[%clk 0:01:21.7]} 27. Be3 {[%clk 0:00:32.5]} 27... Bh4 {[%clk 0:01:16.5]}
28. Kh2 {[%clk 0:00:30.7]} 28... Bf2 {[%clk 0:01:07.7]} 29. Bd2 {[%clk
0:00:29.3]} 29... Bd4 {[%clk 0:00:59.5]} 30. Rf1 {[%clk 0:00:14.7]} 30... Rxf1
{[%clk 0:00:43.5]} 31. Bxf1 {[%clk 0:00:15.6]} 31... Qd1 {[%clk 0:00:42.7]} 32.
Bh6 {[%clk 0:00:15.4]} 32... Qh5 {[%clk 0:00:22.5]} 33. Bd2 {[%clk 0:00:11.5]}
33... Bc8 {[%clk 0:00:18.6]} 34. Be2 {[%clk 0:00:11.6]} 34... Qh4 {[%clk
0:00:17.6]} 35. Bf3 {[%clk 0:00:11.8]} 35... Qf2 {[%clk 0:00:17.1]} 36. Qe2
{[%clk 0:00:09.5]} 36... Qg1+ {[%clk 0:00:16.1]} 37. Kg3 {[%clk 0:00:09.8]}
37... Bd7 {[%clk 0:00:16.2]} 38. Be1 {[%clk 0:00:09.5]} 38... Qe3 {[%clk
0:00:15.1]} 39. Qxe3 {[%clk 0:00:08.7]} 39... Bxe3 {[%clk 0:00:16]} 40. Be2
{[%clk 0:00:09.3]} 40... Bc1 {[%clk 0:00:15.6]} 41. Ba5 {[%clk 0:00:06.6]} 41...
Kf7 {[%clk 0:00:16]} 42. Bc7 {[%clk 0:00:04.8]} 42... Ke7 {[%clk 0:00:16.4]} 43.
Bb8 {[%clk 0:00:04.6]} 43... a6 {[%clk 0:00:16.6]} 44. Bg4 {[%clk 0:00:02.8]}
44... Bxa3 {[%clk 0:00:15.8]} 45. Bc7 {[%clk 0:00:01.1]} 45... Bxg4 {[%clk
0:00:15.5]} 0-1

[Event "*** Titled Tuesday Blitz"]
[Site "Chess.com"]
[Date "2021.02.09"]
[Round "1"]
[White "bylavochka"]
[Black "WPWPWP-2015"]
[Result "0-1"]
[WhiteElo "2089"]
[BlackElo "2487"]
[TimeControl "180+1"]
[EndTime "10:07:46 PST"]
[Termination "WPWPWP-2015 won by resignation"]

1. e4 {[%clk 0:03:00.3]} 1... c5 {[%clk 0:02:53.4]} 2. Nf3 {[%clk 0:03:00.6]}
2... d6 {[%clk 0:02:53.1]} 3. d4 {[%clk 0:03:01]} 3... cxd4 {[%clk 0:02:52.5]}
4. Nxd4 {[%clk 0:03:01.9]} 4... Nf6 {[%clk 0:02:52]} 5. Nc3 {[%clk 0:03:02.2]}
5... a6 {[%clk 0:02:51.7]} 6. f3 {[%clk 0:03:01.9]} 6... e5 {[%clk 0:02:51.2]}
7. Nb3 {[%clk 0:03:01.7]} 7... Be7 {[%clk 0:02:50.8]} 8. Be3 {[%clk 0:03:01.7]}
8... O-O {[%clk 0:02:50.6]} 9. Qd2 {[%clk 0:03:01.3]} 9... Be6 {[%clk
0:02:49.8]} 10. g4 {[%clk 0:03:01.5]} 10... b5 {[%clk 0:02:39.2]} 11. O-O-O
{[%clk 0:02:56.1]} 11... b4 {[%clk 0:02:35.6]} 12. Nd5 {[%clk 0:02:51.1]} 12...
Nxd5 {[%clk 0:02:31.2]} 13. exd5 {[%clk 0:02:52]} 13... Bd7 {[%clk 0:02:30.4]}
14. Qxb4 {[%clk 0:02:48.4]} 14... Qc7 {[%clk 0:02:17.8]} 15. Qb6 {[%clk
0:02:19.5]} 15... Qc8 {[%clk 0:02:17.5]} 16. Na5 {[%clk 0:02:02.7]} 16... f5
{[%clk 0:02:14]} 17. gxf5 {[%clk 0:01:39.2]} 17... Bxf5 {[%clk 0:02:07.3]} 18.
c3 {[%clk 0:01:30.9]} 18... Bd8 {[%clk 0:02:02.3]} 19. Qb4 {[%clk 0:01:22.2]}
19... Nd7 {[%clk 0:01:57]} 20. Nc6 {[%clk 0:01:19.1]} 20... Nc5 {[%clk
0:01:50.5]} 21. h4 {[%clk 0:00:55.6]} 21... a5 {[%clk 0:01:40.8]} 22. Qc4 {[%clk
0:00:42]} 22... Kh8 {[%clk 0:00:48.3]} 23. Bxc5 {[%clk 0:00:37.6]} 23... dxc5
{[%clk 0:00:46.8]} 24. Qxc5 {[%clk 0:00:38.5]} 24... Rf7 {[%clk 0:00:36.8]} 25.
Bd3 {[%clk 0:00:25]} 25... Bd7 {[%clk 0:00:34.6]} 26. Be4 {[%clk 0:00:20.8]}
26... Be7 {[%clk 0:00:32.4]} 27. Qe3 {[%clk 0:00:17.5]} 27... Bf8 {[%clk
0:00:31.9]} 28. Nxe5 {[%clk 0:00:16.4]} 28... Re7 {[%clk 0:00:32.2]} 29. Nxd7
{[%clk 0:00:13.5]} 29... Qxd7 {[%clk 0:00:31.8]} 30. d6 {[%clk 0:00:09.2]} 30...
Re5 {[%clk 0:00:29.9]} 31. Qd4 {[%clk 0:00:09]} 31... Rae8 {[%clk 0:00:29.4]}
32. Rhg1 {[%clk 0:00:05.5]} 32... a4 {[%clk 0:00:29]} 33. c4 {[%clk 0:00:05.5]}
33... a3 {[%clk 0:00:28.7]} 34. b3 {[%clk 0:00:05.7]} 34... Rh5 {[%clk
0:00:18.6]} 35. Rg5 {[%clk 0:00:04.5]} 35... Rh6 {[%clk 0:00:17.6]} 36. Rdg1
{[%clk 0:00:04.3]} 36... Rxd6 {[%clk 0:00:17.5]} 37. Qc3 {[%clk 0:00:03.8]}
37... Rh6 {[%clk 0:00:15.9]} 38. c5 {[%clk 0:00:03.7]} 38... Qf7 {[%clk
0:00:15.5]} 39. c6 {[%clk 0:00:03.8]} 39... Qf4+ {[%clk 0:00:15.2]} 40. Kb1
{[%clk 0:00:04.2]} 40... Qf7 {[%clk 0:00:14.7]} 41. c7 {[%clk 0:00:04.2]} 41...
Rc8 {[%clk 0:00:14.8]} 42. Rf5 {[%clk 0:00:04.1]} 42... Qe7 {[%clk 0:00:14]} 43.
Re5 {[%clk 0:00:04.1]} 43... Qxc7 {[%clk 0:00:13]} 44. Qxc7 {[%clk 0:00:03.9]}
44... Rxc7 {[%clk 0:00:13.9]} 45. Re8 {[%clk 0:00:04.2]} 45... Rf6 {[%clk
0:00:14]} 46. Bd5 {[%clk 0:00:03.5]} 46... Re7 {[%clk 0:00:13.5]} 47. Be4 {[%clk
0:00:03.7]} 47... Rxe8 {[%clk 0:00:12.5]} 0-1

[Event "*** Titled Tuesday Blitz"]
[Site "Chess.com"]
[Date "2021.02.09"]
[Round "1"]
[White "Murad_Ibrahimli"]
[Black "ljuks68"]
[Result "1-0"]
[WhiteElo "2723"]
[BlackElo "2383"]
[TimeControl "180+1"]
[EndTime "10:07:47 PST"]
[Termination "Murad_Ibrahimli won by resignation"]

1. Nf3 {[%clk 0:03:00.9]} 1... d5 {[%clk 0:02:51.3]} 2. d4 {[%clk 0:03:00.1]}
2... Nf6 {[%clk 0:02:50.4]} 3. c4 {[%clk 0:02:59]} 3... c6 {[%clk 0:02:49.8]} 4.
Qc2 {[%clk 0:02:55.3]} 4... e6 {[%clk 0:02:46.8]} 5. g3 {[%clk 0:02:51.5]} 5...
dxc4 {[%clk 0:02:44.5]} 6. Qxc4 {[%clk 0:02:51.3]} 6... b5 {[%clk 0:02:44.7]} 7.
Qc2 {[%clk 0:02:51.5]} 7... Bb7 {[%clk 0:02:45.2]} 8. e4 {[%clk 0:02:45.6]} 8...
Nbd7 {[%clk 0:02:44.7]} 9. Bg2 {[%clk 0:02:27.4]} 9... c5 {[%clk 0:02:43.6]} 10.
d5 {[%clk 0:02:13.8]} 10... exd5 {[%clk 0:02:39.8]} 11. exd5 {[%clk 0:02:06.9]}
11... Bd6 {[%clk 0:02:22.1]} 12. O-O {[%clk 0:01:58.1]} 12... O-O {[%clk
0:02:20.9]} 13. a4 {[%clk 0:01:56.6]} 13... b4 {[%clk 0:02:17.9]} 14. Rd1 {[%clk
0:01:51.6]} 14... Nb6 {[%clk 0:02:06]} 15. Bg5 {[%clk 0:01:36]} 15... h6 {[%clk
0:02:05]} 16. Bxf6 {[%clk 0:01:35.2]} 16... Qxf6 {[%clk 0:02:04.7]} 17. a5
{[%clk 0:01:28.8]} 17... Nd7 {[%clk 0:01:38.2]} 18. Nfd2 {[%clk 0:01:18.3]}
18... Be5 {[%clk 0:01:19.7]} 19. Ne4 {[%clk 0:00:50.3]} 19... Qg6 {[%clk
0:01:19.5]} 20. Nbd2 {[%clk 0:00:46.2]} 20... Rad8 {[%clk 0:01:09.6]} 21. Nf3
{[%clk 0:00:39.2]} 21... Rfe8 {[%clk 0:01:03.8]} 22. a6 {[%clk 0:00:31.6]} 22...
Ba8 {[%clk 0:01:03.1]} 23. Nh4 {[%clk 0:00:24.5]} 23... Qh7 {[%clk 0:00:59.4]}
24. Nf3 {[%clk 0:00:25]} 24... Bxb2 {[%clk 0:00:49.4]} 25. Qxb2 {[%clk 0:00:25]}
25... Qxe4 {[%clk 0:00:49.5]} 26. Nh4 {[%clk 0:00:22.6]} 26... Qe5 {[%clk
0:00:47.8]} 27. Qc2 {[%clk 0:00:23]} 27... Rc8 {[%clk 0:00:34]} 28. Bh3 {[%clk
0:00:20.4]} 28... Red8 {[%clk 0:00:30.6]} 29. Re1 {[%clk 0:00:18.9]} 29... Qf6
{[%clk 0:00:29]} 30. Nf5 {[%clk 0:00:18.2]} 30... Kh8 {[%clk 0:00:18.8]} 31. Ne7
{[%clk 0:00:18]} 31... Rb8 {[%clk 0:00:18.2]} 32. Rad1 {[%clk 0:00:17.6]} 32...
Nb6 {[%clk 0:00:17.1]} 33. Qxc5 {[%clk 0:00:12.4]} 33... b3 {[%clk 0:00:17.2]}
34. Nc6 {[%clk 0:00:11.8]} 34... Bxc6 {[%clk 0:00:16.2]} 35. dxc6 {[%clk
0:00:12.7]} 35... Rxd1 {[%clk 0:00:14.9]} 36. Rxd1 {[%clk 0:00:13.3]} 36... Qf3
{[%clk 0:00:13.6]} 37. Re1 {[%clk 0:00:11.6]} 37... Na4 {[%clk 0:00:12.2]} 38.
Qc4 {[%clk 0:00:11.4]} 38... b2 {[%clk 0:00:11.3]} 39. c7 {[%clk 0:00:09]} 39...
b1=Q {[%clk 0:00:11.5]} 40. Rxb1 {[%clk 0:00:08.3]} 40... Rxb1+ {[%clk
0:00:10.8]} 41. Bf1 {[%clk 0:00:09.2]} 41... Nb6 {[%clk 0:00:09.7]} 42. c8=Q+
{[%clk 0:00:08.5]} 42... Nxc8 {[%clk 0:00:09.1]} 43. Qxc8+ {[%clk 0:00:09.4]}
43... Kh7 {[%clk 0:00:09.5]} 44. Qc2+ {[%clk 0:00:10.1]} 44... f5 {[%clk
0:00:09.7]} 45. Qxb1 {[%clk 0:00:10.5]} 45... Qe4 {[%clk 0:00:10]} 46. Qb7
{[%clk 0:00:10.8]} 46... Qd4 {[%clk 0:00:09.2]} 47. Qc8 {[%clk 0:00:10.5]} 47...
Qb6 {[%clk 0:00:08.9]} 48. Qxf5+ {[%clk 0:00:10.5]} 1-0

[Event "*** Titled Tuesday Blitz"]
[Site "Chess.com"]
[Date "2021.02.09"]
[Round "1"]
[White "chenxiaoyuer"]
[Black "SmirnovAlexandrA"]
[Result "0-1"]
[WhiteElo "2508"]
[BlackElo "2235"]
[TimeControl "180+1"]
[EndTime "10:07:47 PST"]
[Termination "SmirnovAlexandrA won by resignation"]

1. e4 {[%clk 0:03:00.9]} 1... c5 {[%clk 0:02:59.2]} 2. Nf3 {[%clk 0:02:58.8]}
2... d6 {[%clk 0:02:59.1]} 3. d4 {[%clk 0:02:57]} 3... cxd4 {[%clk 0:03:00]} 4.
Nxd4 {[%clk 0:02:57.9]} 4... Nf6 {[%clk 0:03:00.2]} 5. Nc3 {[%clk 0:02:58.1]}
5... a6 {[%clk 0:03:00.4]} 6. Be2 {[%clk 0:02:58.1]} 6... e6 {[%clk 0:02:59.7]}
7. O-O {[%clk 0:02:57.7]} 7... Be7 {[%clk 0:03:00.2]} 8. a4 {[%clk 0:02:57.9]}
8... Qc7 {[%clk 0:03:00.2]} 9. Be3 {[%clk 0:02:57.8]} 9... Nbd7 {[%clk
0:02:58.8]} 10. f4 {[%clk 0:02:54.1]} 10... b6 {[%clk 0:02:52.6]} 11. Bf3 {[%clk
0:02:52]} 11... Bb7 {[%clk 0:02:52.5]} 12. Qe2 {[%clk 0:02:48.6]} 12... O-O
{[%clk 0:02:46.8]} 13. Rae1 {[%clk 0:02:34.5]} 13... Rac8 {[%clk 0:02:43.3]} 14.
Bf2 {[%clk 0:02:31.3]} 14... Rfd8 {[%clk 0:02:25.5]} 15. e5 {[%clk 0:01:58.6]}
15... dxe5 {[%clk 0:02:22.1]} 16. fxe5 {[%clk 0:01:47.6]} 16... Bxf3 {[%clk
0:02:16.2]} 17. Nxf3 {[%clk 0:01:46.1]} 17... Ng4 {[%clk 0:02:01.4]} 18. Bd4
{[%clk 0:01:13.2]} 18... Bc5 {[%clk 0:01:59.3]} 19. Bxc5 {[%clk 0:01:07.1]}
19... Qxc5+ {[%clk 0:01:56.4]} 20. Kh1 {[%clk 0:01:07.5]} 20... Qc4 {[%clk
0:01:48.5]} 21. h3 {[%clk 0:00:53.1]} 21... Qxe2 {[%clk 0:01:44.4]} 22. Rxe2
{[%clk 0:00:53.2]} 22... Nh6 {[%clk 0:01:44.8]} 23. g4 {[%clk 0:00:51.5]} 23...
Nc5 {[%clk 0:01:27.6]} 24. Kg2 {[%clk 0:00:45.1]} 24... Kf8 {[%clk 0:01:25.9]}
25. Ng5 {[%clk 0:00:42.6]} 25... Kg8 {[%clk 0:01:08.3]} 26. Ref2 {[%clk
0:00:40.6]} 26... Rd7 {[%clk 0:01:04.7]} 27. Nce4 {[%clk 0:00:34.8]} 27... Nxe4
{[%clk 0:01:03.7]} 28. Nxe4 {[%clk 0:00:35.7]} 28... Rc4 {[%clk 0:00:54.7]} 29.
Nc3 {[%clk 0:00:21.2]} 29... Kf8 {[%clk 0:00:53.9]} 30. Kf3 {[%clk 0:00:20.2]}
30... Ng8 {[%clk 0:00:53.1]} 31. Ke3 {[%clk 0:00:19.7]} 31... Ke8 {[%clk
0:00:47.6]} 32. Rf4 {[%clk 0:00:19.1]} 32... Rc5 {[%clk 0:00:44.1]} 33. Re4
{[%clk 0:00:14]} 33... Ne7 {[%clk 0:00:43.5]} 34. Ke2 {[%clk 0:00:12.7]} 34...
Nd5 {[%clk 0:00:40.2]} 35. Nxd5 {[%clk 0:00:07.3]} 35... Rdxd5 {[%clk
0:00:41.1]} 36. c3 {[%clk 0:00:05.2]} 36... Rxe5 {[%clk 0:00:40.8]} 37. Rxe5
{[%clk 0:00:06.1]} 37... Rxe5+ {[%clk 0:00:41.7]} 38. Kd3 {[%clk 0:00:06.2]}
38... Ke7 {[%clk 0:00:37.8]} 39. Kd2 {[%clk 0:00:05.5]} 39... f5 {[%clk
0:00:36.4]} 40. gxf5 {[%clk 0:00:04.8]} 40... exf5 {[%clk 0:00:37.3]} 41. Rf4
{[%clk 0:00:05.1]} 41... Kf6 {[%clk 0:00:36.5]} 42. Rc4 {[%clk 0:00:05.3]} 42...
Re6 {[%clk 0:00:31.6]} 43. Rc7 {[%clk 0:00:05.3]} 43... h5 {[%clk 0:00:30.4]}
44. Ra7 {[%clk 0:00:04.7]} 44... a5 {[%clk 0:00:29.9]} 45. Kd3 {[%clk
0:00:04.5]} 45... g5 {[%clk 0:00:28.7]} 46. Kc4 {[%clk 0:00:04.2]} 46... g4
{[%clk 0:00:28.6]} 47. hxg4 {[%clk 0:00:03.2]} 47... hxg4 {[%clk 0:00:28.5]} 48.
Kb5 {[%clk 0:00:04.1]} 48... g3 {[%clk 0:00:28.5]} 49. Ra8 {[%clk 0:00:03.7]}
49... Re7 {[%clk 0:00:27.4]} 50. Rg8 {[%clk 0:00:03.8]} 50... Rg7 {[%clk
0:00:27.2]} 51. Rxg7 {[%clk 0:00:03.8]} 51... Kxg7 {[%clk 0:00:26.6]} 52. Kxb6
{[%clk 0:00:04.7]} 52... g2 {[%clk 0:00:26.7]} 53. c4 {[%clk 0:00:05.6]} 53...
g1=Q+ {[%clk 0:00:27.6]} 54. c5 {[%clk 0:00:06.5]} 54... Kf7 {[%clk 0:00:26]}
55. Kb5 {[%clk 0:00:06.2]} 55... Ke7 {[%clk 0:00:25.4]} 56. c6 {[%clk
0:00:06.3]} 56... Kd6 {[%clk 0:00:25.1]} 0-1